Cogmind - Beta 14 @@@ ROGUE MODE // 2024.08.30 @ 18:40:31 Player: Unit6544 Result: Destroyed by Y-45 Defender with Beam Rifle Performance ------------- Evolutions (1) 500 Regions Visited (2) 400 Robots Destroyed (25) 125 Value Destroyed (680) 680 Prototype IDs (2) 40 Alien Tech Used (0) 0 Bonus (0) 0 TOTAL SCORE: 1745 Bonus ------- None Cogmind --------- Core Integrity 0/400 Matter 297/300 Energy 100/100 System Corruption 0% Temperature Cool (9) Movement Walking (330) Ox3 Location -9/Materials Parts ------- > --- POWER (1) -------- (None) > --- PROPULSION (2) --- Improved Aluminum Leg > --- UTILITY (3) ------ High-capacity Storage Unit Core Shielding Hacking Suite > --- WEAPON (3) ------- Light Assault Rifle > --- INVENTORY (20) --- Aluminum Leg Peak State ------------ > --- POWER ------------ Ion Engine > --- PROPULSION ------- Improved Hover Unit Improved Hover Unit > --- UTILITY ---------- High-capacity Storage Unit Hacking Suite > --- WEAPON ----------- EM Shotgun EM Shotgun EM Shotgun > --- INVENTORY -------- Ion Engine [Rating: 15] Favorites ----------- Power Ion Engine Engine Ion Engine Propulsion Improved Hover Unit Leg Improved Aluminum Leg Wheel Wheel Hover Unit Improved Hover Unit Flight Unit Flight Unit Utility Hacking Suite Device Heat Sink Storage High-capacity Storage Unit Hackware Hacking Suite Protection Core Shielding Weapon Light Assault Rifle Energy Gun EM Shotgun Ballistic Gun Light Assault Rifle Special Weapon Plasma Cutter Build | -11 -10 -9 ------- Run | Yrd Mat Mat Slots Evolved 2 | . . 2 Power . | . . . Propulsion . | . . . Utility 1 | . . 1 Weapon 1 | . . 1 Parts Attached 29 | 6 9 14 Power 4 | 1 . 3 Engine 4 | 1 . 3 Core . | . . . Reactor . | . . . Propulsion 8 | 2 2 4 Treads . | . . . Leg 2 | . . 2 Wheel 2 | 2 . . Hover 2 | . 2 . Flight 2 | . . 2 Utility 7 | 1 4 2 Device 1 | . . 1 Storage 4 | 1 3 . Processor . | . . . Hackware 1 | . 1 . Protection 1 | . . 1 Artifact . | . . . Weapon 10 | 2 3 5 Energy Gun 4 | . 3 1 Energy Cannon . | . . . Ballistic Gun 5 | 2 . 3 Ballistic Cannon . | . . . Launcher . | . . . Special Weapon 1 | . . 1 Impact Weapon . | . . . Slashing Weapon . | . . . Piercing Weapon . | . . . Special Melee Weapon . | . . . Unidentified Prototypes . | . . . Parts Lost 15 | . 1 14 Power 3 | . . 3 Propulsion 5 | . . 5 Utility . | . . . Weapon 7 | . 1 6 Highest Loss Streak 5 | . 1 5 To Critical Strikes . | . . . Average Slot Usage (%) 84 | . 97 74 Engine 10 | . 14 7 Leg 1 | . . 1 Wheel 1 | . 2 . Hover 10 | . 24 1 Flight 8 | . . 14 Storage 12 | . 14 11 Hackware 11 | . 13 11 Energy Gun 11 | . 24 2 Ballistic Gun 14 | . 2 22 Peak Build Rating 15 | 6 14 15 Average Rating 10 | 4 12 9 On Entrance 6 | . 6 13 Naked Turns . | . . . Heaviest Build 54 | 14 51 54 Greatest Support 26 | 26 26 23 Greatest Overweight (x) 14 | . 4 14 Average Overweight (x) 3 | . 2 5 Largest Inventory Capacity 20 | 8 20 20 Average Capacity 18 | 7 16 20 Most Carried 6 | 4 6 4 Average Carried 1 | 1 3 . Final Capacity 20 | 8 20 20 Final Carried 2 | 1 2 1 Class Distribution -------------------- 52% | Mutant 30% | Scavenger-Gunner 13% | Scavenger-Mutant 3% | Gunner Dominant Class ---------------- Mutant | -10/Materials Scavenger-Gunner | -9/Materials Resources | -11 -10 -9 ----------- Run | Yrd Mat Mat Matter Collected 614 | 241 175 198 Remotely . | . . . Salvage Created 856 | . 404 452 Parts 57 | . 29 28 Haulers Intercepted . | . . . Recyclers Shooed . | . . . Parts Field Recycled . | . . . Retrieved Matter . | . . . Parts Self-Destructed . | . . . Prevented . | . . . Kills | -11 -10 -9 ------- Run | Yrd Mat Mat Combat Hostiles Destroyed 20 | . 8 12 Guns 20 | . 8 12 Classes Destroyed 7 | . 5 2 Recycler 1 | . 1 . Operator 1 | . 1 . Watcher 3 | . 3 . Swarmer 5 | . 3 2 Grunt 13 | . 5 8 Duelist 1 | . . 1 Sentry 1 | . . 1 Best Kill Streak 4 | . 4 3 Combat Bots Only 3 | . 3 3 Max Kills in Single Turn 1 | . 1 1 Gunslinging . | . . . Exploded . | . . . Melee . | . . . Uniques/NPCs Destroyed . | . . . Combat | -11 -10 -9 -------- Run | Yrd Mat Mat Hostile Shots Fired 189 | . 40 149 Missed 44 | . 15 29 Damage Taken 1629 | . 256 1373 Core 473 | . 67 406 Absorbed by Shields . | . . . Redirected to Shielding 18 | . . 18 Core Remaining (%) 86 | 100 73 . Volleys Fired 80 | . 23 57 Largest 3 | . 2 3 Hottest 135 | . 90 135 Shots Fired 146 | . 45 101 Gun 144 | . 45 99 Cannon . | . . . Launcher . | . . . Special 2 | . . 2 Kinetic 100 | . 22 78 Thermal 2 | . . 2 Explosive . | . . . Electromagnetic 44 | . 23 21 Robot Hit Streak 15 | . 8 15 Robot Miss Streak 4 | . 2 4 Penetration Max . | . . . Secondary Targets 3 | . 3 . Max Gunslinging Chain 1 | . 1 . Shots Hit Robots 97 | . 33 64 Core Hits 48 | . 20 28 Critical Kills . | . . . Critical Parts Destroyed . | . . . Critical Strikes . | . . . Melee Attacks . | . . . Impact . | . . . Slashing . | . . . Piercing . | . . . Sneak Attacks . | . . . Combat Hostiles . | . . . Follow-up Attacks . | . . . Damage Inflicted 1232 | . 466 766 Guns 1061 | . 419 642 Cannons . | . . . Explosions 148 | . 47 101 Melee . | . . . Ramming 13 | . . 13 Kinetic 665 | . 204 461 Thermal 158 | . 47 111 Explosive . | . . . Electromagnetic 396 | . 215 181 Impact . | . . . Slashing . | . . . Piercing . | . . . Highest Corruption . | . . . Average Corruption . | . . . Corruption Purged . | . . . Corruption Blocked . | . . . Overload Shots . | . . . Overflow Damage . | . . . Projectiles . | . . . Explosions . | . . . Melee . | . . . Knockbacks . | . . . Impact . | . . . Kinetic . | . . . Secondary . | . . . Self-Inflicted Damage . | . . . Shots . | . . . Rammed . | . . . Targets Rammed 1 | . . 1 Kicked 1 | . . 1 Crushed . | . . . Highest Temperature 461 | . 168 461 Average Temperature 102 | . 44 150 Received Heat Transfer 570 | . 96 474 Effects 1 | . . 1 Shutdowns 1 | . . 1 Siege Activations . | . . . Robots Corrupted . | . . . Combat Hostiles . | . . . Parts Fried 1 | . 1 . Impact Corruptions . | . . . Robots Melted . | . . . Combat Hostiles . | . . . Parts Melted . | . . . Heat Transferred 187 | . 50 137 Parts Sabotaged . | . . . Parts Stolen . | . . . Parts Stripped . | . . . Power Chain Reactions 2 | . 1 1 Alert | -11 -10 -9 ------- Run | Yrd Mat Mat Peak Influence 184 | . 184 105 Initial 18 | . . 18 Average 51 | . 69 41 Maximum Alert Level . | . . . Low Security (%) 100 | 100 100 100 Level 1 . | . . . Level 2 . | . . . Level 3 . | . . . Level 4 . | . . . Level 5 . | . . . High Security . | . . . Max Security . | . . . Squads Dispatched 4 | . 3 1 Investigation 2 | . 1 1 Extermination . | . . . Reinforcement 2 | . 2 . Assault . | . . . Garrison . | . . . Intercept . | . . . Searches Triggered . | . . . Construction Impeded . | . . . Haulers Reinforced . | . . . Active Scanning Responses . | . . . Cargo Convoy Interrupts . | . . . Stealth | -11 -10 -9 --------- Run | Yrd Mat Mat Distress Signals . | . . . Communications Jammed . | . . . Distress Signals . | . . . Times Spotted 31 | . 16 15 Peak Tracking Total 4 | . 4 4 Tactical Retreats 1 | . 1 . Traps | -11 -10 -9 ------- Run | Yrd Mat Mat Traps Triggered 1 | . 1 . Indirectly . | . . . Trap Hack Attempts . | . . . Triggered . | . . . Disarmed . | . . . Reprogrammed . | . . . Reused . | . . . Traps Extracted . | . . . Installed . | . . . Triggered . | . . . Machines | -11 -10 -9 ---------- Run | Yrd Mat Mat Machines Disabled . | . . . Max in Single Turn . | . . . Machines Repaired . | . . . Machines Dismantled . | . . . Machines Sabotaged . | . . . Overloaded Fab Kills . | . . . Hacking | -11 -10 -9 --------- Run | Yrd Mat Mat Machines Accessed 6 | . 3 3 Terminals 6 | . 3 3 Fabricators . | . . . Repair Stations . | . . . Recycling Units . | . . . Scanalyzers . | . . . Garrison Access . | . . . Total Hacks 17 | . 9 8 Successful 10 | . 6 4 Failed 7 | . 3 4 Catastrophic 1 | . . 1 Database Lockouts . | . . . Manual . | . . . Terminals 17 | . 9 8 Fabricators . | . . . Repair Stations . | . . . Recycling Units . | . . . Scanalyzers . | . . . Garrison Access . | . . . Terminal Hacks 10 | . 6 4 Prototype ID Bank 1 | . 1 . Repair Station Index 1 | . . 1 Locate Traps 1 | . 1 . Dispatch Records 1 | . . 1 Hauler Manifests 2 | . 1 1 Registered Components 2 | . 1 1 Zone Layout 2 | . 2 . Fabricator Hacks . | . . . Repair Station Hacks . | . . . Recycling Unit Hacks . | . . . Scanalyzer . | . . . Garrison Access Hacks . | . . . Unauthorized Hacks . | . . . Terminals . | . . . Fabricators . | . . . Repair Stations . | . . . Recycling Units . | . . . Scanalyzers . | . . . Garrison Access . | . . . Data Cores Recovered 1 | . 1 . Used . | . . . Hacking Detections 4 | . 2 2 Full Trace Events 1 | . . 1 Feedback Events . | . . . Feedback Blocked . | . . . Robot Schematics Acquired . | . . . Robots Built . | . . . Authchips . | . . . Time . | . . . Total Robot Build Rating . | . . . Part Schematics Acquired . | . . . Parts Built . | . . . Authchips . | . . . Time . | . . . Total Part Build Rating . | . . . Parts Repaired . | . . . Time . | . . . Parts Recycled . | . . . Recycled Matter . | . . . Retrieved Matter . | . . . Retrieved Components . | . . . Parts Scanalyzed . | . . . Part Schematics Acquired . | . . . Parts Damaged . | . . . Bothacking | -11 -10 -9 ------------ Run | Yrd Mat Mat Used RIF Installer . | . . . Robots Hacked . | . . . Non-combat . | . . . Combat . | . . . Robot Hacks Applied . | . . . Relay Couplers Released . | . . . Fabnet Peak Effective % . | . . . Robots Rewired . | . . . Allies Hacked . | . . . Hacks Repelled . | . . . Allies | -11 -10 -9 -------- Run | Yrd Mat Mat Total Allies . | . . . Largest Group . | . . . Highest-Rated Group . | . . . Highest-Rated Ally . | . . . Total Orders . | . . . Ally Attacks . | . . . Total Damage . | . . . Kills . | . . . Allies Corrupted . | . . . Allies Melted . | . . . Intel | -11 -10 -9 ------- Run | Yrd Mat Mat Robot Analysis Total . | . . . Derelict Logs Recovered . | . . . Drone Launches . | . . . Drone Recoveries . | . . . Exploration | -11 -10 -9 ------------- Run | Yrd Mat Mat Turns Passed 2173 | 64 884 1225 Spaces Moved 730 | 61 428 241 Core 44 | 8 11 25 Treads . | . . . Legs 29 | . . 29 Wheels 100 | 53 47 . Hover 390 | . 370 20 Flight 167 | . . 167 Fastest Speed 50 | 50 56 236 Average Speed 258 | 84 183 436 Slowest Speed 840 | 90 250 840 Overloaded Moves . | . . . Propulsion Burnouts . | . . . Robots Hopped . | . . . Cave-ins Triggered . | . . . Exploration Rate (%) 30 | 4 68 19 Regions Visited 2 Branch Regions . Pre-discovered Areas . | . . . Known Exits Taken . | . . . Unknown Exits Taken 2 | 1 1 . Scrap Searched . | . . . Spaces Dug . | . . . Terrain Destroyed 7 | . 3 4 Melee . | . . . Projectile . | . . . AOE 7 | . 3 4 Terrain Rammed . | . . . Walls Destroyed . | . . . Machines Disabled . | . . . Actions | -11 -10 -9 --------- Run | Yrd Mat Mat Total 896 | 73 487 336 Wait . | . . . Move 728 | 60 427 241 Hop . | . . . Pick Up 39 | 7 16 16 Fast Attach . | . . . Attach 28 | 6 8 14 Detach . | . . . Swap 1 | . 1 . Drop 17 | . 12 5 Fire 80 | . 23 57 Melee . | . . . Ram . | . . . Kick 1 | . . 1 Crush . | . . . Escape Stasis . | . . . Rewire . | . . . Trap . | . . . Miscellaneous 2 | . . 2 Route ------- -11/Scrapyard -10/Materials (discovered 3 exits: *Mat x3) -9/Materials History --------- Turn | Location | Event 24 | -11/Scrapyard | Discovered new exit (range 15) 65 | -11/Scrapyard | Entered Materials 211 | -10/Materials | Discovered new exit (range 3) 299 | -10/Materials | Discovered new exit (range 15) 314 | -10/Materials | Build established: Mutant 933 | -10/Materials | Discovered new exit (range 8) 949 | -10/Materials | Entered another Materials area 949 | -9/Materials | Evolved 2 slots: Utility x1, Weapon x1 1058 | -9/Materials | Lost 5 parts (2n3w) 1205 | -9/Materials | Core integrity fell below 50% 1614 | -9/Materials | Build established: Scavenger-Gunner 2010 | -9/Materials | Core integrity fell below 20% 2025 | -9/Materials | Lost 5 parts (1p2n2w) 2174 | -9/Materials | Destroyed by Y-45 Defender with Beam Rifle Last Messages --------------- G-34 Mercenary destroyed. Acquired 2 matter. Acquired Aluminum Leg. Acquired Imp. Aluminum Leg. Acquired 10 matter. Acquired Ion Engine. Acquired Core Shielding. Dropped Heat Sink. Acquired 30 matter. Kicked A-02 Transporter out of the way. K-01 Serf collects debris. Dismantling Recycling Unit with Plasma Cutter. Plasma Cutter destroyed. Critical hit (Burn: +37). Aluminum Leg destroyed. Y-45 Defender destroyed. K-01 Serf cleans the Recycling Unit. K-01 Serf collects debris. Ion Engine destroyed. Map ----- +----------------------------------------------------+ | | | | | | | | | | | | | | | | | | | | | | | | | | | | | | | | | | | ??????????????????????????????????????? | | ??????????????????????????????????????? | | ????????????######????????????????????? | | ???????????##!!!!##???????????????????? | | ????????????! !#???????????????????? | | ????????????? ######??????????????? | | ?????????????# # #??????????????? | | ?????????????# #??????????????? | | ?????????????#@Y +??????????????? | | ???????????#####+## #??????????????? | | ???????????# #???????????????????? | | ???????????# #?? #???????????????? | | ???????????# *## ####????????????? | | ???????????# "Y"%/[ #??????? | | ???????????# """!## ?????? | | ???????????# #??##?### #??????? | | ???????????##+#####???????????????????? | | ????????????# #???????????????????????? | | ????????????# #???????????????????????? | | ????????????# #???????????????????????? | | ????????????# #???????????????????????? | | ????????????# #???????????????????????? | | ????????????#=#???????????????????????? | | ?############*#???????????????????????? | | ?#! ##%#????######?????????????? | | ?# """"" ##=##### #?????????????? | | ?# ""T"" # %%[= #?????????????? | | ?# +=% =* #?????????????? | | ?# """ """ #* *! #?????????????? | | ?# """ """ ###%#### #?????????????? | | ?# """ """ #?#=#???# ##?????????????? | | ?# #?#!#???# #??????????????? | | ?#############/##### #??????????????? | +----------------------------------------------------+ Best States ------------- Heat Dissipation 38 Energy Generation 10 Energy Capacity 250 Matter Stores 300 Matter Capacity 300 Sight Range 16 Terrain Scan Density 10 Core Shielding 20 Evasion (%) 50 Offensive Hacking 10 Item Schematics ----------------- None Robot Schematics ------------------ None Fabricated ------------ Nothing Alien Tech Used ----------------- None Achievements -------------- Shopping List Challenges ------------ None Game ------ Seed ThrowingTargetingPerforator Manual? 0 Play Time 00:17:40 Cumulative 2.0 hours Start 2024.08.30 @ 18:24:03 End 2024.08.30 @ 18:40:31 Sessions 1 Manual Loads 0 Difficulty Rogue Special Mode None Game No. 7 Rogue 7 Adventurer 0 Explorer 0 Win Type - Total 0 Types 0/0/0/0/0/0/0/0/0 Lore% 1 Gallery% 5 Achievement% 5 Wizard Run 0 Options --------- Layout 1 ASCII 0 Keyboard 0 Movement Mouse Keybinds 0 Fullscreen 1 Font 24/Smallcaps Map View 50x40 Zoom Use 0% Tactical HUD 0 Map Filters NONE Filters NONE Steam 1 RUN: 82331758-f9db-42c4-825f-cee428897253